[Event "Early-Titled-Tuesday-Blitz-August-29-2023"]
[Site "Chess.com"]
[Date "2023.08.29"]
[Round "6"]
[White "GMForgacs"]
[Black "DKmirl"]
[Result "1-0"]
[WhiteElo "2437"]
[BlackElo "2253"]
[TimeControl "180+1"]
[EndTime "9:05:23 PDT"]
[Termination "GMForgacs won on time"]

1. e4 {[%clk 0:03:00.9]} 1... c5 {[%clk 0:02:42.8]} 2. Nf3 {[%clk 0:03:00.8]}
2... Nc6 {[%clk 0:02:41.7]} 3. d4 {[%clk 0:03:01.7]} 3... cxd4 {[%clk
0:02:39.9]} 4. Nxd4 {[%clk 0:03:02.6]} 4... Nf6 {[%clk 0:02:28.5]} 5. Nc3 {[%clk
0:03:02]} 5... e5 {[%clk 0:02:27.8]} 6. Ndb5 {[%clk 0:03:00.3]} 6... d6 {[%clk
0:02:28]} 7. Nd5 {[%clk 0:03:00.9]} 7... Nxd5 {[%clk 0:02:27.3]} 8. exd5 {[%clk
0:03:01.8]} 8... Nb8 {[%clk 0:02:27.9]} 9. a4 {[%clk 0:03:01]} 9... Be7 {[%clk
0:02:28]} 10. Be2 {[%clk 0:03:00.9]} 10... O-O {[%clk 0:02:27.9]} 11. O-O {[%clk
0:03:01.6]} 11... f5 {[%clk 0:02:23.2]} 12. f4 {[%clk 0:02:52.1]} 12... e4
{[%clk 0:02:15.3]} 13. Be3 {[%clk 0:02:49.6]} 13... Bf6 {[%clk 0:02:13]} 14. c3
{[%clk 0:02:47]} 14... a6 {[%clk 0:02:07]} 15. Na3 {[%clk 0:02:46.8]} 15... Nd7
{[%clk 0:02:03.5]} 16. Nc4 {[%clk 0:02:42.9]} 16... Nc5 {[%clk 0:02:02.7]} 17.
a5 {[%clk 0:02:39.1]} 17... Kh8 {[%clk 0:01:45.9]} 18. b4 {[%clk 0:02:37]} 18...
Bxc3 {[%clk 0:01:32.9]} 19. bxc5 {[%clk 0:02:35]} 19... Bxa1 {[%clk 0:01:29.9]}
20. Qxa1 {[%clk 0:02:35.3]} 20... dxc5 {[%clk 0:01:23.2]} 21. d6 {[%clk
0:02:35]} 21... Be6 {[%clk 0:01:19.7]} 22. Nb6 {[%clk 0:02:30.3]} 22... Rb8
{[%clk 0:01:06]} 23. Bxc5 {[%clk 0:02:29.9]} 23... Rf7 {[%clk 0:00:58.2]} 24.
Qe5 {[%clk 0:02:27]} 24... Bd7 {[%clk 0:00:55.8]} 25. Bc4 {[%clk 0:02:24.9]}
25... Rf6 {[%clk 0:00:49]} 26. Qe7 {[%clk 0:02:09.9]} 26... Bc6 {[%clk
0:00:38.9]} 27. Bd4 {[%clk 0:01:47.2]} 27... Rg6 {[%clk 0:00:34.9]} 28. Bf7
{[%clk 0:01:38.8]} 28... Qxd6 {[%clk 0:00:23.8]} 29. Qxd6 {[%clk 0:01:35.5]}
29... Rxd6 {[%clk 0:00:24.7]} 30. Be5 {[%clk 0:01:36.1]} 30... Rd2 {[%clk
0:00:07.1]} 31. Bxb8 {[%clk 0:01:26.2]} 31... e3 {[%clk 0:00:06.9]} 32. Re1
{[%clk 0:01:17.3]} 32... Rxg2+ {[%clk 0:00:03.2]} 33. Kf1 {[%clk 0:01:18]} 33...
Rxh2 {[%clk 0:00:01.4]} 34. Rxe3 {[%clk 0:01:13.9]} 34... Bb5+ {[%clk
0:00:01.4]} 35. Kg1 {[%clk 0:01:13.4]} 1-0

[Event "Early-Titled-Tuesday-Blitz-August-29-2023"]
[Site "Chess.com"]
[Date "2023.08.29"]
[Round "6"]
[White "Chessmissile07"]
[Black "nitpicker"]
[Result "1-0"]
[WhiteElo "2818"]
[BlackElo "2303"]
[TimeControl "180+1"]
[EndTime "9:05:27 PDT"]
[Termination "Chessmissile07 won on time"]

1. e4 {[%clk 0:03:00.9]} 1... c5 {[%clk 0:02:59.5]} 2. Nc3 {[%clk 0:03:00.7]}
2... Nc6 {[%clk 0:02:56.1]} 3. Bb5 {[%clk 0:03:00.3]} 3... Nd4 {[%clk
0:02:55.3]} 4. Bc4 {[%clk 0:03:00.7]} 4... a6 {[%clk 0:02:51.1]} 5. Nf3 {[%clk
0:03:00.7]} 5... g6 {[%clk 0:02:50.8]} 6. Nxd4 {[%clk 0:02:56.2]} 6... cxd4
{[%clk 0:02:50.2]} 7. Ne2 {[%clk 0:02:56.8]} 7... Bg7 {[%clk 0:02:49.6]} 8. d3
{[%clk 0:02:57.1]} 8... d6 {[%clk 0:02:41.6]} 9. O-O {[%clk 0:02:56.3]} 9... Nf6
{[%clk 0:02:38.9]} 10. Nxd4 {[%clk 0:02:54.3]} 10... d5 {[%clk 0:02:31.2]} 11.
exd5 {[%clk 0:02:53.6]} 11... Nxd5 {[%clk 0:02:32.1]} 12. Nf3 {[%clk 0:02:51.3]}
12... b5 {[%clk 0:02:30]} 13. Bb3 {[%clk 0:02:51.3]} 13... Bb7 {[%clk
0:02:30.6]} 14. a4 {[%clk 0:02:51.5]} 14... b4 {[%clk 0:02:23.5]} 15. Re1 {[%clk
0:02:42.4]} 15... O-O {[%clk 0:02:08.7]} 16. Qe2 {[%clk 0:02:42.6]} 16... Re8
{[%clk 0:02:00.8]} 17. Ne5 {[%clk 0:02:40.7]} 17... Qc7 {[%clk 0:01:52.2]} 18.
Nxf7 {[%clk 0:02:30.3]} 18... e6 {[%clk 0:01:06]} 19. Ng5 {[%clk 0:02:29]} 19...
Qd6 {[%clk 0:01:00.9]} 20. Ne4 {[%clk 0:02:27.2]} 20... Qc7 {[%clk 0:00:55]} 21.
a5 {[%clk 0:02:19.5]} 21... Bc6 {[%clk 0:00:50.4]} 22. Ng5 {[%clk 0:02:00.2]}
22... Qd6 {[%clk 0:00:42.4]} 23. Bc4 {[%clk 0:01:56.2]} 23... Re7 {[%clk
0:00:37.4]} 24. Ne4 {[%clk 0:01:55]} 24... Qc7 {[%clk 0:00:34.8]} 25. Bg5 {[%clk
0:01:54.6]} 25... Ree8 {[%clk 0:00:27.7]} 26. Nc5 {[%clk 0:01:54]} 26... Qd6
{[%clk 0:00:15.7]} 27. Ne4 {[%clk 0:01:48.6]} 27... Qc7 {[%clk 0:00:15.3]} 28.
Ra2 {[%clk 0:01:37.3]} 28... h6 {[%clk 0:00:10.9]} 29. Bh4 {[%clk 0:01:37.1]}
29... Kh7 {[%clk 0:00:11]} 30. Bg3 {[%clk 0:01:37.4]} 30... Qe7 {[%clk
0:00:08.3]} 31. Qd2 {[%clk 0:01:34.3]} 31... Rad8 {[%clk 0:00:07.1]} 32. Bxa6
{[%clk 0:01:33]} 32... Rf8 {[%clk 0:00:05.9]} 33. Bc4 {[%clk 0:01:32.6]} 33...
g5 {[%clk 0:00:04.8]} 34. a6 {[%clk 0:01:32.1]} 34... Nf4 {[%clk 0:00:04.4]} 35.
f3 {[%clk 0:01:18.7]} 35... Ra8 {[%clk 0:00:02.6]} 36. Bxf4 {[%clk 0:01:14]}
36... gxf4 {[%clk 0:00:01.7]} 37. Nf2 {[%clk 0:01:14.1]} 37... Bd4 {[%clk
0:00:01.6]} 38. Rxe6 {[%clk 0:01:13.3]} 1-0

[Event "Early-Titled-Tuesday-Blitz-August-29-2023"]
[Site "Chess.com"]
[Date "2023.08.29"]
[Round "6"]
[White "FontVella8"]
[Black "JoliyRoger"]
[Result "1-0"]
[WhiteElo "2651"]
[BlackElo "2498"]
[TimeControl "180+1"]
[EndTime "9:05:30 PDT"]
[Termination "FontVella8 won on time"]

1. e4 {[%clk 0:03:00.9]} 1... c6 {[%clk 0:02:48]} 2. Nc3 {[%clk 0:03:00.2]} 2...
d5 {[%clk 0:02:43.9]} 3. d4 {[%clk 0:03:00.3]} 3... dxe4 {[%clk 0:02:43.7]} 4.
Nxe4 {[%clk 0:03:00.5]} 4... Bf5 {[%clk 0:02:44.5]} 5. Ng3 {[%clk 0:03:00.1]}
5... Bg6 {[%clk 0:02:45.1]} 6. N1e2 {[%clk 0:03:00.8]} 6... e6 {[%clk
0:02:44.4]} 7. Nf4 {[%clk 0:02:57.4]} 7... Bd6 {[%clk 0:02:44.9]} 8. Ngh5 {[%clk
0:02:57.4]} 8... Bf8 {[%clk 0:02:37.4]} 9. Bc4 {[%clk 0:02:50]} 9... Nf6 {[%clk
0:02:34.2]} 10. Ng3 {[%clk 0:02:44.7]} 10... Bd6 {[%clk 0:02:29.2]} 11. c3
{[%clk 0:02:28.6]} 11... Nbd7 {[%clk 0:02:19.6]} 12. Qf3 {[%clk 0:02:14.6]}
12... Nb6 {[%clk 0:02:08.5]} 13. Bb3 {[%clk 0:02:12.5]} 13... Bxf4 {[%clk
0:02:06.5]} 14. Bxf4 {[%clk 0:02:11.1]} 14... Nbd5 {[%clk 0:02:05.7]} 15. Be5
{[%clk 0:02:07.7]} 15... O-O {[%clk 0:01:57.7]} 16. O-O {[%clk 0:02:07.7]} 16...
Nd7 {[%clk 0:01:44.9]} 17. Rfe1 {[%clk 0:02:06.5]} 17... Nxe5 {[%clk 0:01:35]}
18. Rxe5 {[%clk 0:02:07.4]} 18... a5 {[%clk 0:01:33.4]} 19. Rae1 {[%clk
0:01:57.2]} 19... Nf6 {[%clk 0:01:32.7]} 20. h4 {[%clk 0:01:50.6]} 20... h6
{[%clk 0:01:28.8]} 21. h5 {[%clk 0:01:49.1]} 21... Bh7 {[%clk 0:01:29.4]} 22.
Bc4 {[%clk 0:01:49.7]} 22... b5 {[%clk 0:01:24.8]} 23. Bd3 {[%clk 0:01:48.7]}
23... Bxd3 {[%clk 0:01:24.8]} 24. Qxd3 {[%clk 0:01:49.1]} 24... b4 {[%clk
0:01:14.6]} 25. Qc4 {[%clk 0:01:42.7]} 25... Qb6 {[%clk 0:01:06.9]} 26. Rc5
{[%clk 0:01:38.3]} 26... Rac8 {[%clk 0:00:57.4]} 27. Ne4 {[%clk 0:01:34.5]}
27... Nd7 {[%clk 0:00:49.2]} 28. Nd6 {[%clk 0:01:30.6]} 28... Rc7 {[%clk
0:00:44.8]} 29. Re3 {[%clk 0:01:23.6]} 29... bxc3 {[%clk 0:00:30.7]} 30. bxc3
{[%clk 0:01:21.8]} 30... Nxc5 {[%clk 0:00:29.2]} 31. dxc5 {[%clk 0:01:20.7]}
31... Qb1+ {[%clk 0:00:29.9]} 32. Kh2 {[%clk 0:01:20.6]} 32... Rd8 {[%clk
0:00:15.6]} 33. Rg3 {[%clk 0:01:15.1]} 33... Rdd7 {[%clk 0:00:09.8]} 34. Ne8
{[%clk 0:01:10.6]} 1-0

[Event "Early-Titled-Tuesday-Blitz-August-29-2023"]
[Site "Chess.com"]
[Date "2023.08.29"]
[Round "6"]
[White "carokannlover213"]
[Black "M1711"]
[Result "0-1"]
[WhiteElo "2702"]
[BlackElo "2560"]
[TimeControl "180+1"]
[EndTime "9:05:37 PDT"]
[Termination "M1711 won on time"]

1. c4 {[%clk 0:03:00.9]} 1... c6 {[%clk 0:02:56.8]} 2. Nf3 {[%clk 0:02:59.9]}
2... Nf6 {[%clk 0:02:56]} 3. b3 {[%clk 0:02:59.5]} 3... d5 {[%clk 0:02:56]} 4.
e3 {[%clk 0:02:59.6]} 4... Bg4 {[%clk 0:02:55.5]} 5. Bb2 {[%clk 0:02:59.6]} 5...
Nbd7 {[%clk 0:02:55.6]} 6. Be2 {[%clk 0:02:59.7]} 6... e6 {[%clk 0:02:55.9]} 7.
O-O {[%clk 0:02:58.2]} 7... Bd6 {[%clk 0:02:56.1]} 8. d4 {[%clk 0:02:57.9]} 8...
O-O {[%clk 0:02:55.7]} 9. Ne5 {[%clk 0:02:54.5]} 9... Bxe2 {[%clk 0:02:55.1]}
10. Qxe2 {[%clk 0:02:55.4]} 10... a5 {[%clk 0:02:54.1]} 11. a3 {[%clk 0:02:46]}
11... Qc7 {[%clk 0:02:52.4]} 12. f4 {[%clk 0:02:43.8]} 12... Ne4 {[%clk
0:02:51.8]} 13. Nd2 {[%clk 0:02:34.2]} 13... Nxd2 {[%clk 0:02:39.3]} 14. Qxd2
{[%clk 0:02:35.1]} 14... f6 {[%clk 0:02:37.6]} 15. Nd3 {[%clk 0:02:21.8]} 15...
a4 {[%clk 0:02:37.8]} 16. c5 {[%clk 0:02:08.9]} 16... Be7 {[%clk 0:02:37.5]} 17.
b4 {[%clk 0:02:05.5]} 17... b5 {[%clk 0:02:38.1]} 18. cxb6 {[%clk 0:02:05.8]}
18... Nxb6 {[%clk 0:02:37.5]} 19. Bc3 {[%clk 0:02:02.6]} 19... Bd6 {[%clk
0:02:28.2]} 20. Qe2 {[%clk 0:02:01.5]} 20... Rfe8 {[%clk 0:02:22.2]} 21. Rfc1
{[%clk 0:01:51.9]} 21... Re7 {[%clk 0:02:10.7]} 22. Qf3 {[%clk 0:01:04.9]} 22...
Rae8 {[%clk 0:02:05.1]} 23. Re1 {[%clk 0:01:00.3]} 23... Nc4 {[%clk 0:01:58.7]}
24. Nb2 {[%clk 0:00:44.7]} 24... Nxb2 {[%clk 0:01:58.3]} 25. Bxb2 {[%clk
0:00:45.6]} 25... e5 {[%clk 0:01:59]} 26. fxe5 {[%clk 0:00:41.6]} 26... fxe5
{[%clk 0:01:59.4]} 27. h3 {[%clk 0:00:36.9]} 27... e4 {[%clk 0:01:56]} 28. Qe2
{[%clk 0:00:35.3]} 28... Qd8 {[%clk 0:01:45.3]} 29. Rf1 {[%clk 0:00:31.3]} 29...
Bc7 {[%clk 0:01:44.4]} 30. Kf2 {[%clk 0:00:06.8]} 30... Rf7+ {[%clk 0:01:35.7]}
31. Ke1 {[%clk 0:00:07]} 31... Ref8 {[%clk 0:01:20.8]} 32. Rxf7 {[%clk
0:00:04.6]} 32... Rxf7 {[%clk 0:01:20.7]} 33. Kd2 {[%clk 0:00:01.8]} 33... Qf6
{[%clk 0:01:17.4]} 34. Kc3 {[%clk 0:00:01.8]} 34... Qf2 {[%clk 0:01:08.1]} 35.
Re1 {[%clk 0:00:02.1]} 35... Bg3 {[%clk 0:01:06]} 36. Qxf2 {[%clk 0:00:02.4]}
36... Rxf2 {[%clk 0:01:05.9]} 37. Rg1 {[%clk 0:00:02]} 37... Re2 {[%clk
0:01:05.2]} 38. Bc1 {[%clk 0:00:02]} 38... Be1+ {[%clk 0:01:02.2]} 0-1

[Event "Early-Titled-Tuesday-Blitz-August-29-2023"]
[Site "Chess.com"]
[Date "2023.08.29"]
[Round "6"]
[White "OparinGrigoriy"]
[Black "LiamPutnam2008"]
[Result "1-0"]
[WhiteElo "2978"]
[BlackElo "2804"]
[TimeControl "180+1"]
[EndTime "9:05:40 PDT"]
[Termination "OparinGrigoriy won by resignation"]

1. Nf3 {[%clk 0:03:00.9]} 1... Nf6 {[%clk 0:02:44.3]} 2. g3 {[%clk 0:03:01]}
2... g6 {[%clk 0:02:44.3]} 3. Bg2 {[%clk 0:03:01.5]} 3... Bg7 {[%clk 0:02:45.2]}
4. c4 {[%clk 0:03:01.6]} 4... O-O {[%clk 0:02:46.1]} 5. Nc3 {[%clk 0:03:02.1]}
5... d6 {[%clk 0:02:47]} 6. d4 {[%clk 0:03:02.1]} 6... Nbd7 {[%clk 0:02:45.7]}
7. O-O {[%clk 0:03:02.6]} 7... e5 {[%clk 0:02:45.9]} 8. e4 {[%clk 0:03:03.4]}
8... Re8 {[%clk 0:02:41.8]} 9. Qc2 {[%clk 0:03:03.7]} 9... c6 {[%clk 0:02:39.1]}
10. Rd1 {[%clk 0:03:03.2]} 10... exd4 {[%clk 0:02:39.3]} 11. Nxd4 {[%clk
0:03:03.1]} 11... Qa5 {[%clk 0:02:37.6]} 12. Nb3 {[%clk 0:02:54.1]} 12... Qc7
{[%clk 0:02:33.7]} 13. Bf4 {[%clk 0:02:49.8]} 13... Ne5 {[%clk 0:02:33.4]} 14.
c5 {[%clk 0:02:48.4]} 14... dxc5 {[%clk 0:02:32.8]} 15. Nxc5 {[%clk 0:02:46.7]}
15... Bg4 {[%clk 0:02:32.7]} 16. Rd2 {[%clk 0:02:23.7]} 16... h6 {[%clk
0:02:28.4]} 17. h3 {[%clk 0:02:20.9]} 17... Bc8 {[%clk 0:02:02.6]} 18. Nd3
{[%clk 0:02:21]} 18... Nfd7 {[%clk 0:01:44]} 19. Nb5 {[%clk 0:02:20.9]} 19...
Qb8 {[%clk 0:01:37.4]} 20. Nxe5 {[%clk 0:02:20.2]} 20... Bxe5 {[%clk 0:01:32.8]}
21. Nd6 {[%clk 0:02:19.6]} 21... Re6 {[%clk 0:01:21.6]} 22. Rad1 {[%clk
0:02:10.3]} 22... Nf8 {[%clk 0:01:08.7]} 23. Bxe5 {[%clk 0:01:46.3]} 23... Rxe5
{[%clk 0:01:09.6]} 24. f4 {[%clk 0:01:46.8]} 24... Re7 {[%clk 0:01:08.1]} 25. f5
{[%clk 0:01:44.1]} 25... Qc7 {[%clk 0:00:52.3]} 26. Qc3 {[%clk 0:01:44.4]} 26...
Bd7 {[%clk 0:00:49]} 27. g4 {[%clk 0:01:37.2]} 27... Be8 {[%clk 0:00:41.4]} 28.
e5 {[%clk 0:01:36.2]} 28... Rd8 {[%clk 0:00:38.3]} 29. Kh1 {[%clk 0:01:31.9]}
29... Nd7 {[%clk 0:00:30.9]} 30. e6 {[%clk 0:01:26.3]} 30... fxe6 {[%clk
0:00:21]} 31. f6 {[%clk 0:01:26.7]} 31... Rh7 {[%clk 0:00:21.7]} 32. Qe3 {[%clk
0:00:48.7]} 32... Nxf6 {[%clk 0:00:15.5]} 33. Qxe6+ {[%clk 0:00:47.4]} 33... Kg7
{[%clk 0:00:16]} 34. Nxe8+ {[%clk 0:00:45]} 34... Rxe8 {[%clk 0:00:15.8]} 35.
Rd7+ {[%clk 0:00:45.6]} 35... Nxd7 {[%clk 0:00:11.1]} 36. Rxd7+ {[%clk
0:00:46.5]} 36... Kh8 {[%clk 0:00:04.8]} 1-0

[Event "Early-Titled-Tuesday-Blitz-August-29-2023"]
[Site "Chess.com"]
[Date "2023.08.29"]
[Round "6"]
[White "cool64chess"]
[Black "Diaschess88"]
[Result "1-0"]
[WhiteElo "2526"]
[BlackElo "2634"]
[TimeControl "180+1"]
[EndTime "9:05:49 PDT"]
[Termination "cool64chess won by resignation"]

1. d4 {[%clk 0:03:00.9]} 1... Nf6 {[%clk 0:02:59.8]} 2. c4 {[%clk 0:02:59.4]}
2... g6 {[%clk 0:02:55.2]} 3. Nc3 {[%clk 0:02:59.4]} 3... d5 {[%clk 0:02:54.8]}
4. cxd5 {[%clk 0:02:58.8]} 4... Nxd5 {[%clk 0:02:55.7]} 5. e4 {[%clk 0:02:57.2]}
5... Nxc3 {[%clk 0:02:55]} 6. bxc3 {[%clk 0:02:56.2]} 6... Bg7 {[%clk
0:02:55.9]} 7. Bc4 {[%clk 0:02:55.3]} 7... c5 {[%clk 0:02:55.2]} 8. Ne2 {[%clk
0:02:53.4]} 8... O-O {[%clk 0:02:55.1]} 9. O-O {[%clk 0:02:52.9]} 9... Nc6
{[%clk 0:02:52.8]} 10. Be3 {[%clk 0:02:52.2]} 10... b6 {[%clk 0:02:50.9]} 11.
Qd2 {[%clk 0:02:50]} 11... Bb7 {[%clk 0:02:50.1]} 12. Rfd1 {[%clk 0:02:49.7]}
12... Na5 {[%clk 0:02:49.3]} 13. Bd3 {[%clk 0:02:49]} 13... e6 {[%clk
0:02:42.2]} 14. Rac1 {[%clk 0:02:48]} 14... Qc7 {[%clk 0:02:40]} 15. Bf4 {[%clk
0:02:44.4]} 15... e5 {[%clk 0:02:36.8]} 16. Bh6 {[%clk 0:02:36.4]} 16... Rad8
{[%clk 0:02:22.7]} 17. Bxg7 {[%clk 0:02:33.6]} 17... Kxg7 {[%clk 0:02:23.6]} 18.
d5 {[%clk 0:02:32.8]} 18... f5 {[%clk 0:02:20.8]} 19. exf5 {[%clk 0:02:28.5]}
19... Bxd5 {[%clk 0:01:56.3]} 20. fxg6 {[%clk 0:02:26.5]} 20... c4 {[%clk
0:01:55.7]} 21. Bb1 {[%clk 0:01:57.6]} 21... Bxg2 {[%clk 0:01:41.2]} 22. Qg5
{[%clk 0:01:50.1]} 22... Rxd1+ {[%clk 0:01:40.9]} 23. Rxd1 {[%clk 0:01:48.9]}
23... Bf3 {[%clk 0:01:41.8]} 24. gxh7+ {[%clk 0:01:48.4]} 24... Kh8 {[%clk
0:01:41.8]} 25. Re1 {[%clk 0:01:22.1]} 25... e4 {[%clk 0:01:13.7]} 26. Ng3
{[%clk 0:01:16]} 26... Qxh7 {[%clk 0:01:11.7]} 27. Bxe4 {[%clk 0:01:13.5]} 27...
Qg7 {[%clk 0:01:01.8]} 28. Qh4+ {[%clk 0:01:03.1]} 28... Kg8 {[%clk 0:01:01.8]}
29. Bxf3 {[%clk 0:00:58.1]} 29... Rxf3 {[%clk 0:01:02.7]} 30. Qd8+ {[%clk
0:00:52.7]} 30... Rf8 {[%clk 0:00:59.8]} 31. Qd5+ {[%clk 0:00:51.7]} 31... Kh8
{[%clk 0:01:00]} 32. Re4 {[%clk 0:00:49.3]} 32... Qh6 {[%clk 0:00:49.6]} 33.
Qe5+ {[%clk 0:00:45.6]} 33... Kh7 {[%clk 0:00:48.2]} 34. Qe7+ {[%clk 0:00:41.2]}
34... Kh8 {[%clk 0:00:47.3]} 35. Rh4 {[%clk 0:00:40.7]} 35... Qxh4 {[%clk
0:00:42.5]} 36. Qxh4+ {[%clk 0:00:41.6]} 36... Kg7 {[%clk 0:00:43.4]} 37. Qd4+
{[%clk 0:00:39.9]} 37... Kf7 {[%clk 0:00:44.3]} 38. h4 {[%clk 0:00:39.8]} 38...
Rc8 {[%clk 0:00:31.1]} 39. Qd7+ {[%clk 0:00:38.4]} 1-0

[Event "Early-Titled-Tuesday-Blitz-August-29-2023"]
[Site "Chess.com"]
[Date "2023.08.29"]
[Round "6"]
[White "imdvb6307"]
[Black "Henryk_S"]
[Result "1-0"]
[WhiteElo "2385"]
[BlackElo "2128"]
[TimeControl "180+1"]
[EndTime "9:05:49 PDT"]
[Termination "imdvb6307 won on time"]

1. c4 {[%clk 0:03:00.9]} 1... c6 {[%clk 0:02:58.6]} 2. Nf3 {[%clk 0:02:53.9]}
2... d5 {[%clk 0:02:58.8]} 3. g3 {[%clk 0:02:54]} 3... Nf6 {[%clk 0:02:57.8]} 4.
Bg2 {[%clk 0:02:54.1]} 4... Bf5 {[%clk 0:02:54.1]} 5. O-O {[%clk 0:02:52.3]}
5... e6 {[%clk 0:02:53.3]} 6. b3 {[%clk 0:02:52.3]} 6... h6 {[%clk 0:02:52.9]}
7. d3 {[%clk 0:02:52.3]} 7... Nbd7 {[%clk 0:02:53.1]} 8. Bb2 {[%clk 0:02:52.6]}
8... Be7 {[%clk 0:02:52.6]} 9. Qc2 {[%clk 0:02:51.4]} 9... Bh7 {[%clk
0:02:51.6]} 10. Nc3 {[%clk 0:02:51.1]} 10... O-O {[%clk 0:02:50.2]} 11. Rad1
{[%clk 0:02:51.1]} 11... a5 {[%clk 0:02:46.4]} 12. e4 {[%clk 0:02:50.9]} 12...
Nc5 {[%clk 0:02:28.4]} 13. cxd5 {[%clk 0:02:42]} 13... cxd5 {[%clk 0:02:25.3]}
14. e5 {[%clk 0:02:42.6]} 14... Nfd7 {[%clk 0:02:20.8]} 15. Qe2 {[%clk
0:02:40.7]} 15... Qb6 {[%clk 0:02:09.1]} 16. d4 {[%clk 0:02:21]} 16... Ne4
{[%clk 0:02:03.9]} 17. Na4 {[%clk 0:02:15.3]} 17... Qa6 {[%clk 0:01:53.1]} 18.
Qxa6 {[%clk 0:02:07]} 18... Rxa6 {[%clk 0:01:54]} 19. Rc1 {[%clk 0:02:07]} 19...
Rc6 {[%clk 0:01:27.1]} 20. Rxc6 {[%clk 0:01:56]} 20... bxc6 {[%clk 0:01:28]} 21.
Rd1 {[%clk 0:01:50.1]} 21... Rc8 {[%clk 0:01:28.3]} 22. Nd2 {[%clk 0:01:49.1]}
22... Nxd2 {[%clk 0:01:20.9]} 23. Rxd2 {[%clk 0:01:49.3]} 23... c5 {[%clk
0:01:19.7]} 24. Bf1 {[%clk 0:01:41.9]} 24... cxd4 {[%clk 0:01:12.2]} 25. Bxd4
{[%clk 0:01:40]} 25... Bb4 {[%clk 0:01:06.4]} 26. Rd1 {[%clk 0:00:49.8]} 26...
Bc2 {[%clk 0:00:53.7]} 27. Rc1 {[%clk 0:00:42.3]} 27... Ba3 {[%clk 0:00:39]} 28.
Nb2 {[%clk 0:00:41.7]} 28... Bxb2 {[%clk 0:00:19]} 29. Bxb2 {[%clk 0:00:41]}
29... Nb6 {[%clk 0:00:18.1]} 30. Ba6 {[%clk 0:00:38.8]} 30... Ra8 {[%clk
0:00:08.1]} 31. Rxc2 {[%clk 0:00:38.8]} 31... Rxa6 {[%clk 0:00:08]} 32. Rc6
{[%clk 0:00:39.5]} 32... Kf8 {[%clk 0:00:06]} 33. Bd4 {[%clk 0:00:39.4]} 1-0

[Event "Early-Titled-Tuesday-Blitz-August-29-2023"]
[Site "Chess.com"]
[Date "2023.08.29"]
[Round "6"]
[White "IM_Tissir"]
[Black "MikeSailer"]
[Result "1-0"]
[WhiteElo "2489"]
[BlackElo "2176"]
[TimeControl "180+1"]
[EndTime "9:05:54 PDT"]
[Termination "IM_Tissir won on time"]

1. e4 {[%clk 0:03:00.9]} 1... d5 {[%clk 0:02:52.5]} 2. Nc3 {[%clk 0:02:47.1]}
2... dxe4 {[%clk 0:02:50.2]} 3. Nxe4 {[%clk 0:02:46.7]} 3... Qd5 {[%clk
0:02:45.7]} 4. Ng3 {[%clk 0:02:36.4]} 4... h5 {[%clk 0:02:42.9]} 5. h3 {[%clk
0:02:34.4]} 5... h4 {[%clk 0:02:35.4]} 6. N3e2 {[%clk 0:02:24.2]} 6... Nc6
{[%clk 0:02:25.2]} 7. Nf3 {[%clk 0:02:18.6]} 7... Bf5 {[%clk 0:02:19.9]} 8. Nc3
{[%clk 0:02:02.2]} 8... Qe6+ {[%clk 0:01:58.7]} 9. Be2 {[%clk 0:01:58.4]} 9...
O-O-O {[%clk 0:01:42.1]} 10. d3 {[%clk 0:01:57.2]} 10... Nf6 {[%clk 0:01:35.4]}
11. Ng5 {[%clk 0:01:43.6]} 11... Qe5 {[%clk 0:00:39.2]} 12. Nxf7 {[%clk
0:01:39.8]} 12... Qa5 {[%clk 0:00:29.1]} 13. Nxh8 {[%clk 0:01:34.4]} 13... e5
{[%clk 0:00:29.4]} 14. Nf7 {[%clk 0:01:32.7]} 14... Rd7 {[%clk 0:00:22.6]} 15.
Ng5 {[%clk 0:01:30.3]} 15... Bb4 {[%clk 0:00:20.3]} 16. O-O {[%clk 0:01:24.4]}
16... Nd4 {[%clk 0:00:19.2]} 17. Nf3 {[%clk 0:01:14.8]} 17... Ne6 {[%clk
0:00:12.3]} 18. Bd2 {[%clk 0:01:07.4]} 18... g5 {[%clk 0:00:12.7]} 19. Nxg5
{[%clk 0:01:03.3]} 19... Rg7 {[%clk 0:00:10.2]} 20. Nxe6 {[%clk 0:00:58.9]}
20... Bxe6 {[%clk 0:00:10.8]} 21. Kh1 {[%clk 0:00:52]} 21... Qb6 {[%clk
0:00:04.2]} 22. Ne4 {[%clk 0:00:44]} 22... Bxd2 {[%clk 0:00:03]} 23. Qxd2 {[%clk
0:00:42.2]} 23... Nd5 {[%clk 0:00:03.2]} 24. Qh6 {[%clk 0:00:35.2]} 24... Rg8
{[%clk 0:00:03.1]} 25. c4 {[%clk 0:00:33.4]} 25... Nf4 {[%clk 0:00:03.6]} 26.
Bf3 {[%clk 0:00:32.9]} 26... Qd6 {[%clk 0:00:03.4]} 27. Nxd6+ {[%clk 0:00:32.2]}
1-0

[Event "Early-Titled-Tuesday-Blitz-August-29-2023"]
[Site "Chess.com"]
[Date "2023.08.29"]
[Round "6"]
[White "tteshan"]
[Black "MBA_CHESS_2021"]
[Result "0-1"]
[WhiteElo "2575"]
[BlackElo "2306"]
[TimeControl "180+1"]
[EndTime "9:05:59 PDT"]
[Termination "MBA_CHESS_2021 won by resignation"]

1. d4 {[%clk 0:03:00.9]} 1... d5 {[%clk 0:02:59.3]} 2. c4 {[%clk 0:03:01.5]}
2... c6 {[%clk 0:02:59.5]} 3. Nc3 {[%clk 0:03:02]} 3... Nf6 {[%clk 0:02:59.7]}
4. e3 {[%clk 0:03:01.9]} 4... g6 {[%clk 0:02:58.2]} 5. Nf3 {[%clk 0:03:00.3]}
5... Bg7 {[%clk 0:02:58.1]} 6. cxd5 {[%clk 0:02:58.5]} 6... cxd5 {[%clk
0:02:57.8]} 7. Be2 {[%clk 0:02:53.8]} 7... O-O {[%clk 0:02:57.2]} 8. O-O {[%clk
0:02:53.8]} 8... Nc6 {[%clk 0:02:57.4]} 9. Bd2 {[%clk 0:02:49.8]} 9... a6 {[%clk
0:02:56.2]} 10. Rc1 {[%clk 0:02:50]} 10... Bg4 {[%clk 0:02:54.8]} 11. h3 {[%clk
0:02:48.6]} 11... Bf5 {[%clk 0:02:53.5]} 12. Na4 {[%clk 0:02:43.7]} 12... Ne4
{[%clk 0:02:46.2]} 13. Be1 {[%clk 0:02:43.4]} 13... Rc8 {[%clk 0:02:44.7]} 14.
Nd2 {[%clk 0:02:27]} 14... e5 {[%clk 0:02:27.6]} 15. Nxe4 {[%clk 0:02:17.1]}
15... Bxe4 {[%clk 0:02:27.3]} 16. dxe5 {[%clk 0:02:06]} 16... Bxe5 {[%clk
0:02:19.8]} 17. Bc3 {[%clk 0:02:04]} 17... Bb8 {[%clk 0:02:07.5]} 18. b3 {[%clk
0:01:30.1]} 18... b5 {[%clk 0:01:56.4]} 19. Nb2 {[%clk 0:01:30]} 19... b4 {[%clk
0:01:47.5]} 20. Bd4 {[%clk 0:01:27]} 20... Nxd4 {[%clk 0:01:38.5]} 21. Qxd4
{[%clk 0:01:27.9]} 21... Qg5 {[%clk 0:01:34.7]} 22. Bg4 {[%clk 0:00:34.5]} 22...
f5 {[%clk 0:01:09.9]} 23. f4 {[%clk 0:00:33.1]} 23... Qe7 {[%clk 0:00:49.9]} 24.
Be2 {[%clk 0:00:28.2]} 24... Ba7 {[%clk 0:00:49.5]} 25. Qd2 {[%clk 0:00:22.6]}
25... a5 {[%clk 0:00:38.1]} 26. Kh1 {[%clk 0:00:18.9]} 26... Qf6 {[%clk
0:00:33.8]} 27. Nd3 {[%clk 0:00:17.7]} 27... Rc3 {[%clk 0:00:23]} 28. Ne5 {[%clk
0:00:16.9]} 28... Bxe3 {[%clk 0:00:21.1]} 29. Rxc3 {[%clk 0:00:12.3]} 29... Bxd2
{[%clk 0:00:20.1]} 30. Rc6 {[%clk 0:00:09.7]} 30... Qh4 {[%clk 0:00:19]} 31. Kh2
{[%clk 0:00:09.1]} 31... Bxf4+ {[%clk 0:00:17.9]} 0-1